bitfinex-derivatives/quotes_SOLF0:USTF0_20250923
["timestamp","ask_amount","ask_price","bid_price","bid_amount"]
[1758640966561,1.14383154,218.54,218.47,7.69]
[1758640966758,11.5752,218.55,218.47,7.69]
[1758640966959,1.14383137,218.54,218.47,7.69]
[1758640967156,1.14383128,218.53,218.47,7.69]
[1758640967359,11.5752,218.55,218.47,7.69]
[1758640967560,1.14383128,218.54,218.47,7.69]
[1758640967762,1.14383128,218.53,218.47,7.69]
[1758640967963,11.5752,218.55,218.47,7.69]
[1758640968165,1.14383129,218.54,218.47,7.69]
[1758640968362,1.14383129,218.53,218.47,7.69]
[1758640968554,11.5752,218.55,218.47,7.69]
[1758640968759,1.14383129,218.54,218.47,7.69]
[1758640969063,1.14383129,218.53,218.47,7.69]
[1758640969261,4.1146,218.58,218.48,3.81217375]
[1758640969461,1.14379039,218.57,218.49,7.69]
[1758640969660,1.14379039,218.56,218.49,7.69]
[1758640969861,1.14379039,218.55,218.51,4.1157]
[1758640970062,4.1145,218.59,218.49,7.69]
[1758640970262,1.14369226,218.58,218.49,7.69]
[1758640970462,1.14369226,218.57,218.49,7.69]
[1758640970666,1.14369226,218.56,218.49,7.69]
[1758640970867,1.14369226,218.55,218.49,7.69]
[1758640971071,4.1145,218.59,218.49,7.69]
[1758640971367,1.14369218,218.58,218.49,7.69]
[1758640971569,1.14369218,218.57,218.49,7.69]
[1758640971768,1.14369218,218.56,218.5,4.1159]
[1758640971969,1.14369218,218.55,218.51,7.69]
[1758640972268,4.1145,218.59,218.51,7.69]
[1758640972469,1.1436921,218.58,218.51,7.69]
[1758640972770,1.1436921,218.57,218.51,7.69]
[1758640972971,1.1436921,218.56,218.5,4.1159]
[1758640973166,4.1145,218.59,218.52,7.67]
[1758640973366,1.14365953,218.58,218.52,7.67]
[1758640973565,1.14365953,218.57,218.49,7.67]
[1758640973763,4.1145,218.59,218.49,7.67]
[1758640973959,1.14361016,218.58,218.49,7.67]
[1758640974169,1.14361016,218.57,218.49,7.67]
[1758640974358,4.1145,218.59,218.49,7.67]
[1758640974562,1.14361016,218.58,218.49,7.67]
[1758640974760,1.14361016,218.57,218.51,7.67]
[1758640974970,4.1146,218.58,218.51,7.67]
[1758640975269,1.14367529,218.57,218.51,11.7857]
[1758640975566,7.33,218.59,218.51,11.7857]
[1758640975770,1.14367529,218.58,218.51,3.81217375]
[1758640975970,1.14367529,218.57,218.51,3.81217375]
[1758640976159,7.33,218.63,218.52,7.67]
[1758640976363,7.33,218.61,218.52,7.67]
[1758640976566,1.14365865,218.6,218.52,7.67]
[1758640976767,1.14365865,218.6,218.48,126.04217375]
[1758640976768,7.33,218.59,218.48,126.04217375]
[1758640976970,1.14365865,218.58,218.48,126.04217375]
[1758640977170,1.14365865,218.58,218.49,7.67]
[1758640977870,1.14365865,218.58,218.49,3.83714532]
[1758640978072,1.14365865,218.58,218.5,7.67]
[1758640978268,1.14365865,218.58,218.5,11.7859]
[1758640979270,1.14365865,218.58,218.51,11.48217375]
[1758640979572,7.33,218.63,218.52,7.67]
[1758640979867,1.14365857,218.62,218.52,7.67]
[1758640980070,1.14365857,218.61,218.52,7.67]
[1758640980375,1.14365857,218.6,218.55,3.81217375]
[1758640980671,7.33,218.67,218.56,7.67]
[1758640980871,1.14339715,218.66,218.56,7.67]
[1758640981172,1.14339715,218.65,218.56,7.67]
[1758640981371,7.33,218.67,218.57,7.67]
[1758640981671,7.33,218.67,218.56,118.35714532]
[1758640981672,7.33,218.67,218.6,7.67]
[1758640981872,1.35849,218.71,218.6,7.67]
[1758640982073,1.14324624,218.7,218.63,7.67]
[1758640982371,1.14324624,218.69,218.63,7.67]
[1758640982671,1.35849,218.71,218.63,7.67]
[1758640982672,1.35849,218.71,218.64,7.67]
[1758640983274,1.35849,218.71,218.66,4.1128]
[1758640983868,1.35849,218.71,218.68,11.7826]
[1758640984171,1.35849,218.71,218.66,3.81217375]
[1758640984172,1.35849,218.71,218.67,7.67]
[1758640984375,0.70895282,218.71,218.7,7.67]
[1758640985073,7.33,218.81,218.7,8.13]
[1758640985265,7.33,218.81,218.72,7.67]
[1758640985470,7.33,218.86,218.72,7.67]
[1758640985777,7.33,218.86,218.75,7.67]
[1758640986774,71.2587,218.84,218.75,7.67]
[1758640987172,4.1099,218.83,218.75,7.67]
[1758640988870,7.33,218.84,218.75,7.67]
[1758640989075,4.1094,218.86,218.75,7.67]
[1758640989268,84.8850509,218.88,218.75,7.67]
[1758640989677,4.1096,218.84,218.75,7.67]
[1758640990377,4.1091,218.87,218.77,7.67]
[1758640990876,4.1091,218.87,218.78,4.1107]
[1758640991576,7.33,218.88,218.79,7.72]
[1758640992173,7.61,218.93,218.81,7.72]
[1758640992476,7.61,218.93,218.82,7.72]
[1758640992780,4.1077,218.95,218.84,7.72]
[1758640992973,7.61,218.97,218.84,7.72]
[1758640993780,63.8961,218.95,218.84,7.72]
[1758640993982,7.61,218.94,218.84,7.72]
[1758640994182,13.55203214,218.98,218.84,7.72]
[1758640994384,4.1074,218.96,218.86,3.81217375]
[1758640994681,4.1074,218.96,218.87,7.72]
[1758640995068,4.1078,218.94,218.87,7.72]
[1758640997576,7.61,218.96,218.87,7.72]
[1758641000983,4.1078,218.94,218.87,7.72]
[1758641002981,4.1081,218.93,218.87,7.72]
[1758641004588,11.6481,218.93,218.84,7.14]
[1758641005189,11.6481,218.93,218.84,11.2496]
[1758641006685,11.6481,218.93,218.84,4.1096]
[1758641006882,4.1075,218.96,218.86,4.1092]
[1758641007082,4.1075,218.96,218.87,7.14]
[1758641007588,4.1077,218.95,218.87,7.14]
[1758641007887,7.54,218.98,218.9,7.14]
[1758641008088,409.5067,219.06,218.92,3.81217375]
[1758641008089,4.1063,219.02,218.92,3.81217375]
[1758641008384,4.1063,219.02,218.93,7.14]
[1758641008590,4.1063,219.02,218.96,2.42818756]
[1758641009187,7.54,219.03,218.98,9.56818756]
[1758641009589,7.54,219.03,218.98,7.14]
[1758641009788,7.54,219.03,218.98,9.56818756]
[1758641011180,9.96818756,219.08,218.99,2.42818756]
[1758641011586,9.96818756,219.08,218.98,7.14]
[1758641011786,9.96818756,219.08,218.98,9.56818756]
[1758641012885,4.1058,219.05,218.98,9.56818756]
[1758641013088,7.54,219.07,218.98,9.56818756]
[1758641013484,4.106,219.04,218.98,9.56818756]
[1758641013887,4.1055,219.06,218.98,9.56818756]
[1758641014088,4.1055,219.06,219.0,2.42818756]
[1758641015492,7.54,219.12,219.03,2.42818756]
[1758641015695,7.54,219.12,219.04,7.14]
[1758641016191,114.18,219.14,219.06,2.42818756]
[1758641016587,118.2842,219.14,219.06,2.42818756]
[1758641017093,4.1042,219.14,219.06,2.42818756]
[1758641017289,7.54,219.15,219.09,2.42818756]
[1758641017882,7.54,219.15,218.96,7.14]
[1758641018083,71.3794,219.15,219.03,2.42818756]
[1758641018287,7.54,219.12,219.03,2.42818756]
[1758641018488,71.3868,219.12,219.01,7.14]
[1758641018689,7.54,219.09,219.01,7.14]
[1758641019391,4.1051,219.08,219.01,7.14]
[1758641020893,7.54,219.09,219.01,7.14]
[1758641021494,7.54,219.18,219.05,2.42818756]
[1758641021693,9.96818756,219.14,219.05,2.42818756]
[1758641022094,4.1044,219.12,219.05,2.42818756]
[1758641023095,11.6448,219.1,219.05,2.42818756]
[1758641023299,11.6448,219.1,219.05,9.56818756]
[1758641024397,11.6448,219.1,219.06,7.14]
[1758641024804,4.1044,219.12,219.06,7.14]
[1758641025494,11.6448,219.1,219.06,7.14]
[1758641026096,11.6448,219.1,219.03,2.42818756]
[1758641026298,4.1051,219.09,219.01,7.14]
[1758641026994,4.1051,219.09,219.02,2.42818756]
[1758641028193,4.1053,219.08,219.02,2.42818756]
[1758641028389,4.1053,219.08,219.01,7.14]
[1758641031304,11.6454,219.07,219.01,7.14]
[1758641031694,7.54,219.07,218.89,132.90614654]
[1758641031894,7.54,219.06,218.96,7.14]
[1758641032703,2.42818756,219.12,219.03,2.42818756]
[1758641033097,63.835,219.16,219.02,7.14]
[1758641033098,7.18,219.09,219.02,7.14]
[1758641034406,4.1053,219.07,219.02,7.14]
[1758641034601,7.18,219.06,219.02,7.14]
[1758641035204,4.1057,219.05,218.97,7.33]
[1758641035399,7.18,219.06,218.98,2.42818756]
[1758641035603,7.18,219.06,219.0,6.53468756]
[1758641035802,7.18,219.1,219.02,2.42818756]
[1758641036806,7.18,219.1,219.03,4.1059]
[1758641037203,7.18,219.1,219.02,2.42818756]
[1758641038305,9.60818756,219.1,219.01,11.4364]
[1758641038813,4.1049,219.09,219.01,11.4364]
[1758641039399,4.1053,219.08,219.01,11.4364]
[1758641041011,13.71288756,219.1,219.02,4.1061]
[1758641041905,11.2847,219.1,219.02,4.1061]
[1758641043112,4.105,219.09,219.02,4.1061]
[1758641044111,7.18,219.1,219.02,2.42818756]
[1758641044314,7.18,219.14,219.05,9.75818756]
[1758641044616,2.42818756,219.18,219.08,2.42818756]
[1758641044817,2.42818756,219.18,219.1,4.1046]
[1758641044818,4.1036,219.17,219.1,4.1046]
[1758641045012,7.18,219.18,219.1,4.1046]
[1758641045211,7.18,219.18,219.1,2.42818756]
[1758641045515,7.18,219.23,219.13,2.42818756]
[1758641045711,7.18,219.23,219.14,7.33]
[1758641046413,11.2824,219.23,219.14,7.33]
[1758641046617,11.2824,219.23,219.14,9.75818756]
[1758641046815,7.18,219.23,219.14,7.33]
[1758641047011,4.1027,219.21,219.14,7.33]
[1758641047714,11.2823,219.23,219.14,11.4339]
[1758641047921,2.42818756,219.22,219.14,7.33]
[1758641048120,4.1028,219.21,219.14,7.33]
[1758641049319,7.18,219.2,219.11,6.53268756]
[1758641049622,9.60818756,219.2,219.11,6.53268756]
[1758641049917,9.60818756,219.2,219.13,13.86228756]
[1758641049918,7.18,219.2,219.13,13.86228756]
[1758641050124,7.18,219.2,219.13,9.75818756]
[1758641050417,7.18,219.25,219.18,2.42818756]
[1758641050628,15.8688409,219.3,219.2,2.42818756]
[1758641050923,7.09,219.29,219.2,2.42818756]
[1758641051720,7.09,219.29,219.2,9.81818756]
[1758641051918,7.09,219.29,219.23,2.42818756]
[1758641052117,7.09,219.29,219.23,9.81818756]
[1758641052428,7.09,219.33,219.23,9.81818756]
[1758641052621,7.09,219.33,219.24,4.1021]
[1758641053323,4.1001,219.35,219.26,9.81818756]
[1758641053620,9.51818756,219.37,219.26,9.81818756]
[1758641054215,7.09,219.37,219.26,7.39]
[1758641054420,9.51818756,219.37,219.27,2.42818756]
[1758641054821,7.09,219.37,219.27,2.42818756]
[1758641055030,9.51818756,219.37,219.27,2.42818756]
[1758641055228,7.09,219.37,219.3,2.42818756]
[1758641056131,7.09,219.37,219.29,7.39]
[1758641056132,9.51818756,219.37,219.29,7.39]
[1758641056326,9.51818756,219.37,219.26,2.42818756]
[1758641056926,4.1,219.36,219.26,6.52978756]
[1758641057327,7.09,219.37,219.28,9.81818756]
[1758641057633,11.1897,219.37,219.28,13.91948756]
[1758641058628,11.1897,219.37,219.28,9.81818756]
[1758641059035,4.1001,219.35,219.28,9.81818756]
[1758641059432,4.1001,219.35,219.28,7.39]
[1758641059632,7.09,219.34,219.26,2.42818756]
[1758641059840,7.09,219.34,219.26,7.39]
[1758641060039,7.09,219.34,219.26,9.81818756]
[1758641060437,4.0993,219.39,219.3,2.42818756]
[1758641061325,7.09,219.4,219.31,7.39]
[1758641061530,9.51818756,219.4,219.31,7.39]
[1758641061736,2.42818756,219.38,219.31,7.39]
[1758641062127,2.42818756,219.36,219.24,7.39]
[1758641062339,2.42818756,219.34,219.25,2.42818756]
[1758641062740,2.42818756,219.29,219.23,7.39]
[1758641063239,7.58,219.27,219.19,4.1029]
[1758641063433,7.58,219.27,219.19,11.6329]
[1758641063633,10.00818756,219.27,219.19,7.53]
[1758641064031,7.58,219.32,219.21,2.42818756]
[1758641064240,2.42818756,219.31,219.22,7.53]
[1758641064534,2.42818756,219.35,219.25,2.42818756]
[1758641064840,7.58,219.36,219.28,7.53]
[1758641065035,7.58,219.42,219.34,2.42818756]
[1758641065837,10.00818756,219.42,219.33,4.1002]
[1758641067233,7.58,219.42,219.33,4.1002]
[1758641067439,7.58,219.42,219.35,2.42818756]
[1758641068034,2.42818756,219.45,219.36,4.0997]
[1758641068342,2.42818756,219.45,219.35,9.95818756]
[1758641068343,7.58,219.46,219.38,2.42818756]
[1758641068530,7.58,219.46,219.4,4.0991]
[1758641068928,7.58,219.46,219.39,2.42818756]
[1758641069730,2.42818756,219.45,219.35,7.53]
[1758641069935,2.42818756,219.45,219.35,9.95818756]
[1758641070235,4.0984,219.44,219.35,14.05808756]
[1758641070632,4.0984,219.44,219.35,7.53]
[1758641070939,4.0988,219.42,219.35,7.53]
[1758641072742,7.58,219.46,219.35,7.53]
[1758641072743,4.0984,219.45,219.35,7.53]
[1758641072933,7.58,219.46,219.35,7.53]
[1758641073343,4.0986,219.44,219.35,7.53]
[1758641073735,7.58,219.46,219.35,7.53]
[1758641074935,7.58,219.46,219.35,71.3075]
[1758641075546,7.58,219.46,219.39,4.0991]
[1758641075841,7.58,219.46,219.39,7.53]
[1758641076043,4.0971,219.51,219.39,7.53]
[1758641076243,63.7345,219.51,219.36,112.14]
[1758641076437,7.58,219.5,219.36,119.67]
[1758641076738,4.0982,219.46,219.37,4.0997]
[1758641077145,4.0984,219.45,219.37,4.0997]
[1758641077347,7.58,219.46,219.36,7.53]
[1758641078039,7.58,219.46,219.37,4.0997]
[1758641078241,4.0984,219.45,219.37,4.0997]
[1758641078443,7.58,219.46,219.36,7.53]
[1758641080847,4.0989,219.42,219.36,7.53]
[1758641081048,7.58,219.44,219.32,4.1005]
[1758641081741,4.0991,219.41,219.32,4.1005]
[1758641084550,4.0986,219.43,219.31,114.46564992]
[1758641084747,4.0986,219.43,219.32,7.53]
[1758641085252,7.58,219.44,219.32,7.53]
[1758641085253,7.58,219.44,219.34,4.1001]
[1758641086447,7.58,219.44,219.33,7.53]
[1758641087153,7.58,219.44,219.34,4.1002]
[1758641087555,7.58,219.57,219.43,63.7554]
[1758641087747,7.58,219.57,219.44,121.29]
[1758641088746,7.58,219.57,219.48,4.0975]
[1758641090550,7.58,219.57,219.49,4.0973]
[1758641090849,7.58,219.57,219.47,7.53]
[1758641091042,7.58,219.57,219.5,4.0971]
[1758641092453,7.58,219.57,219.51,4.0969]
[1758641093250,7.58,219.57,219.53,4.0967]
[1758641093452,7.55,219.62,219.5,71.2541]
[1758641093853,7.55,219.62,219.51,4.0969]
[1758641094854,4.0958,219.59,219.51,4.0969]
[1758641095057,7.55,219.58,219.51,4.0969]
[1758641095756,7.55,219.64,219.51,7.52]
[1758641095952,7.55,219.64,219.52,3.77504934]
[1758641096354,7.55,219.64,219.56,4.0961]
[1758641097258,4.0949,219.63,219.54,7.52]
[1758641097961,4.0949,219.63,219.54,11.6163]
[1758641098963,7.55,219.64,219.54,7.52]
[1758641099559,7.55,219.64,219.5,62.0]
[1758641099757,7.55,219.62,219.49,7.52]
[1758641100060,7.55,219.62,219.51,7.52]
[1758641100457,7.55,219.62,219.51,71.2523]
[1758641100658,7.55,219.62,219.52,7.52]
[1758641101659,7.55,219.62,219.54,4.0963]
[1758641102060,7.55,219.62,219.52,7.52]
[1758641102256,7.55,219.62,219.44,85.1]
[1758641102257,7.55,219.6,219.45,11.29504934]
[1758641102467,7.55,219.6,219.48,7.52]
[1758641102663,7.55,219.6,219.51,4.0969]
[1758641102858,7.55,219.6,219.49,7.52]
[1758641103260,7.55,219.6,219.49,11.6173]
[1758641104062,11.6461,219.57,219.49,11.6173]
[1758641105054,4.0963,219.55,219.49,7.52]
[1758641105564,7.55,219.57,219.49,7.52]
[1758641106161,7.55,219.57,219.44,4.0982]
[1758641106359,7.55,219.57,219.43,7.52]
[1758641106360,7.55,219.54,219.43,7.52]
[1758641106666,11.32504934,219.54,219.43,7.52]
[1758641106967,11.32504934,219.54,219.39,11.35448129]
[1758641106968,7.55,219.52,219.39,11.35448129]
[1758641107355,7.55,219.52,219.46,4.0978]
[1758641107559,7.55,219.58,219.46,7.52]
[1758641108062,4.0961,219.57,219.5,4.0971]
[1758641108263,4.0961,219.57,219.46,7.52]
[1758641108264,7.55,219.58,219.48,7.52]
[1758641108570,7.55,219.58,219.51,4.0969]
[1758641108757,7.55,219.58,219.48,7.52]
[1758641108960,380.35736597,219.76,219.57,7.52]
[1758641108961,7.55,219.66,219.57,7.52]
[1758641110261,11.32504934,219.66,219.52,7.52]
[1758641110468,7.55,219.59,219.46,7.52]
[1758641110966,7.55,219.59,219.51,4.097]
[1758641111173,7.55,219.59,219.47,63.7418]
[1758641111771,7.55,219.59,219.52,4.0967]
[1758641111970,7.39,219.69,219.52,63.7288]
[1758641112267,7.39,219.65,219.52,63.7288]
[1758641112568,7.39,219.65,219.57,4.0958]
[1758641113067,7.39,219.65,219.55,63.721]
[1758641113665,7.39,219.65,219.58,4.0958]
[1758641114060,7.39,219.65,219.56,4.0961]
[1758641114266,7.39,219.65,219.49,63.738]
[1758641114463,7.39,219.66,219.49,70.748]
[1758641114658,7.39,219.66,219.53,4.0965]
[1758641114858,7.39,219.65,219.53,4.0965]
[1758641115069,7.39,219.63,219.53,4.0965]
[1758641115270,4.0955,219.6,219.51,4.097]
[1758641115566,7.39,219.59,219.51,4.097]
[1758641116170,4.0958,219.58,219.49,11.1074]
[1758641116372,7.39,219.59,219.49,11.1074]
[1758641117776,4.0961,219.57,219.49,11.1074]
[1758641118375,7.39,219.59,219.5,4.0971]
[1758641119079,7.39,219.59,219.51,4.0969]
[1758641120588,11.4857,219.59,219.51,4.0969]
[1758641121283,11.4857,219.59,219.44,348.17448129]
[1758641121284,7.39,219.58,219.44,7.01]
[1758641121782,7.39,219.56,219.44,7.01]
[1758641121988,11.4867,219.54,219.47,4.0977]
[1758641122576,7.39,219.54,219.48,4.0975]
[1758641123783,7.39,219.54,219.45,4.0981]
[1758641124885,4.0968,219.53,219.45,4.0981]
[1758641125081,4.0968,219.53,219.46,4.0978]
[1758641125388,7.39,219.54,219.46,4.0978]
[1758641125579,7.39,219.54,219.47,4.0977]
[1758641126492,7.39,219.54,219.48,4.0975]
[1758641126678,63.6869,219.67,219.49,7.57]
[1758641126679,7.66,219.64,219.49,7.57]
[1758641126883,7.66,219.61,219.49,7.57]
[1758641127486,7.66,219.61,219.5,63.7349]
[1758641127683,7.66,219.61,219.51,7.57]
[1758641128082,7.66,219.61,219.5,63.7349]
[1758641128083,7.66,219.61,219.56,11.666]
[1758641128390,11.7546,219.65,219.56,11.666]
[1758641128585,11.7546,219.65,219.56,7.57]
[1758641128586,7.66,219.65,219.56,7.57]
[1758641129098,7.66,219.65,219.56,11.6661]
[1758641129292,7.66,219.65,219.56,7.57]
[1758641129693,113.88,219.69,219.61,4.0951]
[1758641129992,4.0942,219.67,219.56,7.57]
[1758641131486,11.7537,219.69,219.61,4.0951]
[1758641131692,125.5737,219.69,219.58,7.57]
[1758641131997,7.66,219.69,219.62,4.0949]
[1758641132293,7.66,219.69,219.61,7.57]
[1758641132594,113.82,219.72,219.61,7.57]
[1758641132792,5.10664794,219.71,219.61,7.57]
[1758641133091,5.10664794,219.71,219.63,7.57]
[1758641133296,5.10664794,219.71,219.67,4.0939]
[1758641133599,12.76664794,219.73,219.67,11.6639]
[1758641133792,7.66,219.73,219.67,7.57]
[1758641134301,7.66,219.73,219.61,7.57]
[1758641134591,16.85974794,219.73,219.61,7.57]
[1758641134796,7.66,219.73,219.61,7.57]
[1758641135192,4.0937,219.7,219.61,7.57]
[1758641135786,11.7539,219.69,219.61,7.57]
[1758641136500,9.19994794,219.72,219.61,7.57]
[1758641136799,5.10664794,219.71,219.61,7.57]
[1758641136999,126.54664794,219.74,219.61,7.57]
[1758641137301,121.44,219.74,219.61,7.57]
[1758641137502,4.0932,219.72,219.62,3.78490201]
[1758641137696,4.0932,219.72,219.61,7.57]
[1758641137892,121.42,219.74,219.61,7.57]
[1758641138396,63.6813,219.69,219.58,3.78490201]
[1758641138589,7.66,219.68,219.56,3.78490201]
[1758641138792,7.66,219.68,219.55,11.35490201]
[1758641138996,4.0945,219.65,219.58,4.0958]
[1758641139197,4.0945,219.65,219.55,11.35490201]
[1758641140797,4.0945,219.65,219.57,4.0959]
[1758641140998,7.66,219.68,219.55,11.35490201]
[1758641141301,63.6984,219.63,219.5,20.49863802]
[1758641141602,7.66,219.62,219.5,15.45210201]
[1758641141992,7.66,219.62,219.5,11.35490201]
[1758641141993,7.66,219.59,219.5,11.35490201]
[1758641142604,4.0961,219.57,219.5,11.35490201]
[1758641142796,7.66,219.59,219.5,11.35490201]
[1758641143099,7.66,219.59,219.5,7.57]
[1758641143397,63.6984,219.63,219.47,3.78490201]
[1758641143602,7.66,219.62,219.49,3.78490201]
[1758641143900,7.66,219.58,219.49,3.78490201]
[1758641144094,7.66,219.58,219.48,11.35490201]
[1758641144704,4.0955,219.6,219.45,68.79573601]
[1758641144705,4.0955,219.6,219.5,7.57]
[1758641144895,4.0958,219.58,219.5,7.57]
[1758641145400,4.0963,219.55,219.48,3.78490201]
[1758641145600,7.66,219.61,219.48,7.57]
[1758641145798,113.94,219.6,219.48,7.57]
[1758641145996,7.66,219.61,219.5,4.0972]
[1758641146208,7.66,219.61,219.49,3.78490201]
[1758641146500,7.66,219.61,219.5,7.57]
[1758641146701,7.66,219.61,219.52,4.0969]
[1758641147096,7.66,219.61,219.5,7.57]
[1758641147301,11.7558,219.58,219.5,7.57]
[1758641148302,7.66,219.58,219.5,7.57]
[1758641148702,7.66,219.58,219.52,4.0968]
[1758641149709,11.7558,219.58,219.5,7.57]
[1758641150706,4.0961,219.57,219.47,7.88270201]
[1758641150902,7.66,219.58,219.48,7.57]
[1758641151203,7.66,219.62,219.5,63.7355]
[1758641151400,7.66,219.62,219.52,7.57]
[1758641151603,65.1,219.66,219.52,7.57]
[1758641151903,4.0946,219.64,219.55,4.0962]
[1758641152105,7.66,219.63,219.55,4.0962]
[1758641152899,7.66,219.63,219.53,4.0967]
[1758641153500,4.0955,219.6,219.53,4.0967]
[1758641153700,105.62,219.63,219.53,4.0967]
[1758641154001,7.65,219.59,219.53,4.0967]
[1758641154909,7.65,219.59,219.52,7.57]
[1758641155210,4.0959,219.58,219.51,4.097]
[1758641155602,7.65,219.59,219.49,7.88230201]
[1758641155802,11.7463,219.56,219.49,4.0974]
[1758641156008,7.65,219.56,219.47,3.78490201]
[1758641156207,7.65,219.56,219.46,3.78490201]
[1758641156402,63.7161,219.57,219.44,3.78490201]
[1758641156403,4.0971,219.51,219.44,3.78490201]
[1758641156800,4.0971,219.51,219.43,3.78490201]
[1758641157207,4.0974,219.5,219.43,4.0984]
[1758641158006,4.0964,219.55,219.45,7.14]
[1758641158204,7.65,219.56,219.45,7.14]
[1758641158401,7.65,219.56,219.47,3.78490201]
[1758641158602,7.65,219.56,219.46,3.78490201]
[1758641158910,7.65,219.56,219.47,3.78490201]
[1758641159914,7.65,219.56,219.5,4.0971]
[1758641160112,7.65,219.56,219.47,3.78490201]
[1758641160408,7.65,219.61,219.5,63.7351]
[1758641160616,7.65,219.61,219.51,70.8728]
[1758641161003,63.6801,219.7,219.53,63.7271]
[1758641161200,63.6801,219.7,219.54,7.14]
[1758641161201,121.59,219.69,219.54,7.14]
[1758641162011,7.65,219.69,219.54,7.14]
[1758641162210,4.0948,219.64,219.55,4.0963]
[1758641163013,4.0948,219.64,219.54,7.14]
[1758641163014,4.0948,219.64,219.57,4.0959]
[1758641163414,7.65,219.67,219.6,4.0953]
[1758641163613,408.78121213,219.74,219.58,63.7124]
[1758641163817,121.55,219.73,219.59,7.14]
[1758641164216,4.0937,219.69,219.62,4.0948]
[1758641164706,113.9,219.72,219.62,4.0948]
[1758641164908,4.0937,219.7,219.62,4.0948]
[1758641165513,98.8,219.71,219.59,11.2354]
[1758641165713,7.65,219.7,219.59,11.2354]
[1758641166818,4.0941,219.67,219.59,11.2354]
[1758641167219,85.53,219.7,219.59,11.2354]
[1758641168018,4.0941,219.67,219.59,11.2354]
[1758641168220,7.65,219.66,219.55,3.78490201]
[1758641168423,7.65,219.64,219.53,7.14]
[1758641168618,4.0954,219.61,219.53,7.14]
[1758641170221,4.0956,219.6,219.53,7.14]
[1758641170624,71.3545,219.61,219.5,3.78490201]
[1758641170923,71.3545,219.61,219.49,3.78490201]
[1758641170924,7.65,219.61,219.49,3.78490201]
[1758641171220,7.65,219.61,219.5,4.0973]
[1758641171420,113.78,219.6,219.49,3.78490201]
[1758641171622,113.78,219.65,219.52,7.59]
[1758641171817,7.39,219.66,219.52,7.59]
[1758641171818,7.39,219.66,219.52,11.37490201]
[1758641172015,4.0945,219.65,219.53,7.59]
[1758641172216,7.39,219.66,219.57,4.0958]
[1758641172413,7.39,219.66,219.56,7.59]
[1758641173815,4.0945,219.65,219.58,4.0957]
[1758641174223,4.0948,219.63,219.56,11.6861]
[1758641174726,7.39,219.66,219.56,11.6861]
[1758641174727,7.39,219.66,219.56,7.59]
[1758641174929,7.39,219.66,219.58,4.0956]
[1758641175627,7.39,219.66,219.6,4.0954]
[1758641176425,4.0938,219.69,219.6,4.0954]
[1758641176632,7.39,219.7,219.61,4.095]
[1758641176830,11.4837,219.7,219.61,4.095]
[1758641177329,4.0941,219.68,219.59,11.6855]
[1758641177529,7.39,219.7,219.59,11.6855]
[1758641177725,177.4956,219.71,219.54,3.78490201]